Cogmind - Beta 14 @@@ ROGUE MODE // 2024.08.25 @ 02:02:38 Player: Zaros426 Result: Destroyed by S-10 Pest with Light Assault Rifle Performance ------------- Evolutions (0) 0 Regions Visited (2) 400 Robots Destroyed (22) 110 Value Destroyed (490) 490 Prototype IDs (6) 120 Alien Tech Used (0) 0 Bonus (0) 0 TOTAL SCORE: 1120 Bonus ------- None Cogmind --------- Core Integrity 0/250 Matter 265/300 Energy 156/265 System Corruption 0% Temperature Warm (135) Movement Core (700) Ox13 Location -10/Mines Parts ------- > --- POWER (1) -------- Improved Ion Engine > --- PROPULSION (2) --- (None) > --- UTILITY (2) ------ Large Storage Unit Medium Armor Plating > --- WEAPON (2) ------- Spread Laser Spread Laser > --- INVENTORY (15) --- Improved Ion Engine Heat Sink Improved Heat Sink Huge Storage Unit Signal Interpreter Signal Interpreter Seismic Detector Medium Armor Plating Grenade Launcher Grenade Launcher Datajack Peak State ------------ > --- POWER ------------ Improved Ion Engine > --- PROPULSION ------- Light Treads Light Treads > --- UTILITY ---------- Improved Heat Sink Large Storage Unit > --- WEAPON ----------- Spread Laser Spread Laser > --- INVENTORY -------- Improved Ion Engine Improved Ion Engine Heat Sink Huge Storage Unit High-capacity Matter Pod Signal Interpreter Signal Interpreter Seismic Detector Medium Armor Plating Medium Armor Plating Spread Laser Light Cannon Grenade Launcher Grenade Launcher Datajack [Rating: 14] Favorites ----------- Power Ion Engine Engine Ion Engine Propulsion Light Treads Treads Light Treads Wheel Wheel Utility Large Storage Unit Device Seismic Detector Storage Large Storage Unit Protection Medium Armor Plating Weapon Light Cannon Energy Gun Spread Laser Energy Cannon Beam Cannon Ballistic Gun Assault Rifle Ballistic Cannon Light Cannon Launcher Grenade Launcher Build | -11 -10 -10 ------- Run | Yrd Mat Min Slots Evolved . | . . . Power . | . . . Propulsion . | . . . Utility . | . . . Weapon . | . . . Parts Attached 26 | 7 13 6 Power 3 | 1 1 1 Engine 3 | 1 1 1 Core . | . . . Reactor . | . . . Propulsion 4 | 2 2 . Treads 2 | . 2 . Leg . | . . . Wheel 2 | 2 . . Hover . | . . . Flight . | . . . Utility 8 | 2 2 4 Device 2 | 1 1 . Storage 2 | 1 1 . Processor . | . . . Hackware . | . . . Protection 4 | . . 4 Artifact . | . . . Weapon 11 | 2 8 1 Energy Gun 5 | 1 3 1 Energy Cannon 2 | . 2 . Ballistic Gun 1 | 1 . . Ballistic Cannon 2 | . 2 . Launcher 1 | . 1 . Special Weapon . | . . . Impact Weapon . | . . . Slashing Weapon . | . . . Piercing Weapon . | . . . Special Melee Weapon . | . . . Unidentified Prototypes . | . . . Parts Lost 6 | . . 6 Power 1 | . . 1 Propulsion 2 | . . 2 Utility 2 | . . 2 Weapon 1 | . . 1 Highest Loss Streak 6 | . . 6 To Critical Strikes . | . . . Average Slot Usage (%) 99 | . 99 94 Engine 14 | . 14 14 Treads 25 | . 25 23 Wheel 2 | . 2 . Device 13 | . 14 11 Storage 14 | . 14 14 Energy Gun 9 | . 6 27 Energy Cannon 2 | . 2 . Ballistic Gun 4 | . 5 . Ballistic Cannon 9 | . 10 . Launcher 2 | . 3 . Peak Build Rating 14 | 7 14 14 Average Rating 9 | 5 8 13 On Entrance 7 | . 7 14 Naked Turns . | . . . Heaviest Build 40 | 15 34 40 Greatest Support 40 | 20 40 40 Greatest Overweight (x) 13 | . 1 13 Average Overweight (x) . | . . . Largest Inventory Capacity 15 | 8 15 15 Average Capacity 14 | 7 14 15 Most Carried 15 | 3 15 15 Average Carried 12 | 2 12 14 Final Capacity 15 | 8 15 15 Final Carried 15 | 3 15 11 Class Distribution -------------------- 100% | Mutant Dominant Class ---------------- Mutant | -10/Materials Mutant | -10/Mines Resources | -11 -10 -10 ----------- Run | Yrd Mat Min Matter Collected 757 | 276 481 . Remotely . | . . . Salvage Created 622 | 113 495 14 Parts 54 | 7 45 2 Haulers Intercepted 1 | . 1 . Recyclers Shooed . | . . . Parts Field Recycled . | . . . Retrieved Matter . | . . . Parts Self-Destructed . | . . . Prevented . | . . . Kills | -11 -10 -10 ------- Run | Yrd Mat Min Combat Hostiles Destroyed 16 | . 14 2 Guns 7 | . 5 2 Cannons 9 | . 9 . Classes Destroyed 8 | 2 4 2 Tunneler 1 | 1 . . Hauler 1 | . 1 . Recycler 2 | 1 1 . Watcher 3 | . 3 . Swarmer 6 | . 6 . Grunt 8 | . 8 . Demolisher 1 | . . 1 Assembled 1 | . . 1 Best Kill Streak 3 | 2 3 1 Combat Bots Only 3 | . 3 1 Max Kills in Single Turn 1 | 1 1 1 Gunslinging . | . . . Exploded . | . . . Melee . | . . . Uniques/NPCs Destroyed . | . . . Combat | -11 -10 -10 -------- Run | Yrd Mat Min Hostile Shots Fired 103 | . 56 47 Missed 27 | . 20 7 Damage Taken 1398 | . 363 1035 Core 253 | . 37 216 Absorbed by Shields . | . . . Core Remaining (%) 100 | 100 . . Volleys Fired 80 | 2 71 7 Largest 2 | 2 2 2 Hottest 130 | 60 120 130 Shots Fired 122 | 4 104 14 Gun 64 | 4 46 14 Cannon 57 | . 57 . Launcher 1 | . 1 . Special . | . . . Kinetic 55 | 2 53 . Thermal 64 | . 50 14 Explosive 1 | . 1 . Electromagnetic 2 | 2 . . Robot Hit Streak 10 | 3 10 9 Robot Miss Streak 10 | . 4 10 Penetration Max . | . . . Secondary Targets 1 | . . 1 Max Gunslinging Chain 1 | . . 1 Shots Hit Robots 74 | 3 58 13 Core Hits 43 | 2 22 19 Critical Kills 1 | . 1 . Critical Parts Destroyed . | . . . Critical Strikes 4 | . 4 . Burn 1 | . 1 . Destroy 1 | . 1 . Blast 2 | . 2 . Melee Attacks . | . . . Impact . | . . . Slashing . | . . . Piercing . | . . . Sneak Attacks . | . . . Combat Hostiles . | . . . Follow-up Attacks . | . . . Damage Inflicted 1207 | 40 994 173 Guns 612 | 40 399 173 Cannons 559 | . 559 . Explosions 36 | . 36 . Melee . | . . . Ramming . | . . . Kinetic 446 | 10 436 . Thermal 695 | . 522 173 Explosive 36 | . 36 . Electromagnetic 30 | 30 . . Impact . | . . . Slashing . | . . . Piercing . | . . . Highest Corruption . | . . . Average Corruption . | . . . Corruption Purged . | . . . Corruption Blocked . | . . . Overload Shots . | . . . Overflow Damage . | . . . Projectiles . | . . . Explosions . | . . . Melee . | . . . Knockbacks 5 | . 5 . Impact . | . . . Kinetic 4 | . 4 . Secondary 1 | . 1 . Self-Inflicted Damage 5 | . 5 . Shots 1 | . 1 . Rammed . | . . . Targets Rammed . | . . . Kicked . | . . . Crushed . | . . . Highest Temperature 243 | . 199 243 Average Temperature 74 | . 70 93 Received Heat Transfer 117 | . 117 . Siege Activations . | . . . Robots Corrupted . | . . . Combat Hostiles . | . . . Parts Fried . | . . . Impact Corruptions . | . . . Robots Melted . | . . . Combat Hostiles . | . . . Parts Melted 1 | . 1 . Heat Transferred 1473 | . 1258 215 Parts Sabotaged . | . . . Parts Stolen . | . . . Parts Stripped . | . . . Power Chain Reactions . | . . . Alert | -11 -10 -10 ------- Run | Yrd Mat Min Peak Influence 167 | 10 167 30 Initial 6 | . 6 . Average 38 | 5 46 1 Maximum Alert Level . | . . . Low Security (%) 100 | 100 100 100 Level 1 . | . . . Level 2 . | . . . Level 3 . | . . . Level 4 . | . . . Level 5 . | . . . High Security . | . . . Max Security . | . . . Squads Dispatched 1 | . 1 . Investigation 1 | . 1 . Extermination . | . . . Reinforcement . | . . . Assault . | . . . Garrison . | . . . Intercept . | . . . Searches Triggered . | . . . Construction Impeded . | . . . Haulers Reinforced . | . . . Active Scanning Responses . | . . . Cargo Convoy Interrupts . | . . . Stealth | -11 -10 -10 --------- Run | Yrd Mat Min Distress Signals . | . . . Communications Jammed . | . . . Distress Signals . | . . . Times Spotted 31 | . 19 12 Peak Tracking Total 6 | . 3 6 Tactical Retreats 1 | . 1 . Traps | -11 -10 -10 ------- Run | Yrd Mat Min Traps Triggered . | . . . Indirectly . | . . . Trap Hack Attempts . | . . . Triggered . | . . . Disarmed . | . . . Reprogrammed . | . . . Reused . | . . . Traps Extracted . | . . . Installed . | . . . Triggered . | . . . Machines | -11 -10 -10 ---------- Run | Yrd Mat Min Machines Disabled 1 | . 1 . Max in Single Turn 1 | . 1 . Machines Repaired . | . . . Machines Dismantled . | . . . Machines Sabotaged . | . . . Overloaded Fab Kills . | . . . Hacking | -11 -10 -10 --------- Run | Yrd Mat Min Machines Accessed 8 | . 8 . Terminals 8 | . 8 . Fabricators . | . . . Repair Stations . | . . . Recycling Units . | . . . Scanalyzers . | . . . Garrison Access . | . . . Total Hacks 23 | . 23 . Successful 14 | . 14 . Failed 9 | . 9 . Catastrophic 1 | . 1 . Database Lockouts . | . . . Manual 14 | . 14 . Terminals 23 | . 23 . Fabricators . | . . . Repair Stations . | . . . Recycling Units . | . . . Scanalyzers . | . . . Garrison Access . | . . . Terminal Hacks 12 | . 12 . Robot Analysis 2 | . 2 . Prototype ID Bank 4 | . 4 . Branch Access Points 1 | . 1 . Terminal Index 1 | . 1 . Unreport Threat 1 | . 1 . Locate Traps 3 | . 3 . Fabricator Hacks . | . . . Repair Station Hacks . | . . . Recycling Unit Hacks . | . . . Scanalyzer . | . . . Garrison Access Hacks . | . . . Unauthorized Hacks 2 | . 2 . Terminals 2 | . 2 . Botnet 2 | . 2 . Fabricators . | . . . Repair Stations . | . . . Recycling Units . | . . . Scanalyzers . | . . . Garrison Access . | . . . Data Cores Recovered . | . . . Used . | . . . Hacking Detections 8 | . 8 . Full Trace Events 3 | . 3 . Feedback Events . | . . . Feedback Blocked . | . . . Robot Schematics Acquired . | . . . Robots Built . | . . . Authchips . | . . . Time . | . . . Total Robot Build Rating . | . . . Part Schematics Acquired . | . . . Parts Built . | . . . Authchips . | . . . Time . | . . . Total Part Build Rating . | . . . Parts Repaired . | . . . Time . | . . . Parts Recycled . | . . . Recycled Matter . | . . . Retrieved Matter . | . . . Retrieved Components . | . . . Parts Scanalyzed . | . . . Part Schematics Acquired . | . . . Parts Damaged . | . . . Bothacking | -11 -10 -10 ------------ Run | Yrd Mat Min Used RIF Installer . | . . . Robots Hacked . | . . . Non-combat . | . . . Combat . | . . . Robot Hacks Applied . | . . . Relay Couplers Released . | . . . Fabnet Peak Effective % . | . . . Robots Rewired . | . . . Allies Hacked . | . . . Hacks Repelled . | . . . Allies | -11 -10 -10 -------- Run | Yrd Mat Min Total Allies . | . . . Largest Group . | . . . Highest-Rated Group . | . . . Highest-Rated Ally . | . . . Total Orders . | . . . Ally Attacks . | . . . Total Damage . | . . . Kills . | . . . Allies Corrupted . | . . . Allies Melted . | . . . Intel | -11 -10 -10 ------- Run | Yrd Mat Min Robot Analysis Total 2 | . 2 . Derelict Logs Recovered . | . . . Drone Launches . | . . . Drone Recoveries . | . . . Exploration | -11 -10 -10 ------------- Run | Yrd Mat Min Turns Passed 1721 | 59 1426 236 Spaces Moved 952 | 52 777 123 Core 7 | 5 . 2 Treads 774 | . 653 121 Legs . | . . . Wheels 171 | 47 124 . Hover . | . . . Flight . | . . . Fastest Speed 50 | 50 80 160 Average Speed 147 | 77 149 169 Slowest Speed 700 | 80 160 700 Overloaded Moves . | . . . Propulsion Burnouts . | . . . Robots Hopped . | . . . Cave-ins Triggered . | . . . Exploration Rate (%) 42 | 3 98 26 Regions Visited 2 Branch Regions 1 Pre-discovered Areas . | . . . Known Exits Taken 1 | . 1 . Unknown Exits Taken 1 | 1 . . Scrap Searched . | . . . Spaces Dug . | . . . Terrain Destroyed 8 | . 8 . Melee . | . . . Projectile . | . . . AOE 8 | . 8 . Terrain Rammed . | . . . Walls Destroyed . | . . . Machines Disabled . | . . . Actions | -11 -10 -10 --------- Run | Yrd Mat Min Total 1146 | 63 947 136 Wait 41 | . 41 . Move 950 | 51 776 123 Hop . | . . . Pick Up 30 | 3 27 . Fast Attach 9 | 7 2 . Attach 4 | . . 4 Detach . | . . . Swap 13 | . 11 2 Drop 19 | . 19 . Fire 80 | 2 71 7 Melee . | . . . Ram . | . . . Kick . | . . . Crush . | . . . Escape Stasis . | . . . Rewire . | . . . Trap . | . . . Miscellaneous . | . . . Route ------- -11/Scrapyard -10/Materials (discovered 5 exits: [*Mat x3] / *Min x2) -10/Mines History --------- Turn | Location | Event 20 | -11/Scrapyard | Discovered new exit (range 15) 60 | -11/Scrapyard | Entered Materials 305 | -10/Materials | Build established: Mutant 446 | -10/Materials | Discovered new exit (range 11) 524 | -10/Materials | Discovered new exit (range 4) 857 | -10/Materials | Discovered new exit (range 8) 1009 | -10/Materials | Identified exit to Mines 1060 | -10/Materials | Discovered new exit (range 10) 1299 | -10/Materials | Discovered new exit (range 11) 1486 | -10/Materials | Entered Mines 1667 | -10/Mines | Assembled infested the area 1672 | -10/Mines | Assisted by a Guerilla fighting off Assembled 1701 | -10/Mines | Core integrity fell below 50% 1712 | -10/Mines | Core integrity fell below 20% 1722 | -10/Mines | Destroyed by S-10 Pest with Light Assault Rifle Last Messages --------------- 01699_ The unstable cave ceiling collapses. 01700_ Med. Armor Plating destroyed. 01700_ K-01 Serf destroyed. 01700_ S-10 Pest destroyed. 01701_ The unstable cave ceiling collapses. 01701_ U-05 Engineer lays Concrete. 01702_ Imp. Ion Engine destroyed. 01702_ U-05 Engineer lays Concrete. 01703_ The unstable cave ceiling collapses. 01703_ U-05 Engineer builds a Wall. 01704_ The unstable cave ceiling collapses. 01706_ Med. Armor Plating destroyed. 01707_ The unstable cave ceiling collapses. 01707_ as-75344 destroyed. 01707_ as-90212 destroyed. 01707_ as-62613 destroyed. 01708_ D-53 Grenadier destroyed. 01709_ The unstable cave ceiling collapses. 01720_ as-52442 destroyed. 01720_ Switching to secondary target: S-10 Pest. Map ----- +----------------------------------------------------+ | ?????????????????????????????????????????????????? | | ?????????????????????????????????????????????????? | | ?????????????????????????????????????????????????? | | ?????????????????????????????????????????????????? | | ?????????????????????????????????????????????????? | | ?????????????????????????????????????????????????? | | ?????????????????????????????????????????????????? | | ?????????????????????????????????????????????????? | | ?????????????????????????????????????????????????? | | ?????????????????????????????????????????????????? | | ?????????????????????????????????????????????????? | | ?????????????????????????????????????????????????? | | ?????????????????????????????????????????????????? | | ?????????????????????????????????????????????????? | | ??????????????????????????????#??????????????????? | | ????????????????????????????? #??????????????????? | | ????????????????????????????# #??????????????????? | | ???????????????????????????? ???????????????????? | | ???????????????????????##### #???????????????????? | | ???????????????????##### ????????????????????? | | ??????????????# ??## ??########???????????? | | ??????????????# u##! # #### ##??????????? | | ??????????????# =%%% % ## ####???????? | | ??????????????# = # ####????? | | ??????????????????# s # # s s ##???? | | ??????????????????# %@ ## #???? | | ??????????????????# # #### ##??? | | ?????????????????# a ## # ###??# ### ##?? | | ?????????????????## ### # ## #????# #?## ##? | | ??????????????????## %# # # ???? #??## ## | | ???????????????????# % ### ##??####???# # | | ???????????????????# %# ##?? ?????????## | | ???????????????????# ##???## ????????## | | ???????????????????## ??????## #?????## ## | | ???????????????????? ????????# #???## ##### | | ????????????????????#???????? #???# ##???# | | ????????????????????????????? #???# #????? | | ????????????????????????????? ???## ##????? | | ?????????????????????????????# ???# ##?????? | | ?????????????????????????????# #??# ##??????? | | ?????????????????????????????? ???## #???????? | | ?????????????????????????????? ?????###???????? | | ?????????????????????????????? ???????????????? | | ?????????????????????????????????????????????????? | | ?????????????????????????????????????????????????? | | ?????????????????????????????????????????????????? | | ?????????????????????????????????????????????????? | | ?????????????????????????????????????????????????? | | ?????????????????????????????????????????????????? | | ?????????????????????????????????????????????????? | +----------------------------------------------------+ Best States ------------- Heat Dissipation 39 Energy Generation 12 Energy Capacity 265 Matter Stores 300 Matter Capacity 300 Sight Range 16 Terrain Scan Density 10 Armor Coverage 225 Evasion (%) 44 Recoil Reduction 2 Item Schematics ----------------- None Robot Schematics ------------------ None Fabricated ------------ Nothing Alien Tech Used ----------------- None Achievements -------------- None Challenges ------------ None Game ------ Seed ThrowingBottomlessMembrane Manual? 0 Play Time 00:16:51 Cumulative 29.0 hours Start 2024.08.25 @ 01:47:29 End 2024.08.25 @ 02:02:38 Sessions 1 Manual Loads 0 Difficulty Rogue Special Mode None Game No. 16 Rogue 16 Adventurer 0 Explorer 0 Win Type - Total 0 Types 0/0/0/0/0/0/0/0/0 Lore% 28 Gallery% 40 Achievement% 37 Wizard Run 0 Options --------- Layout 0 ASCII 0 Keyboard 0 Movement Mouse Keybinds 0 Fullscreen 1 Font 24/Smallcaps Map View 183x50 Zoom Use 0% Tactical HUD 1 Map Filters NONE Filters NONE Steam 0 RUN: de9af4a0-fad9-453a-8da4-6bf0adec6418